Workbook

Sheet RESUMO DO ORÇAMENTO
A1: SERVIÇO: Execução de CBUQ em vias públicas - SRP | G1: DATA BASE:
A2: LOCAL: MUNICÍPIOS DIVERSOS, ESTADO DE SERGIPE | G2: BDI: | H2: =BDI!C33 -> 0
G3: BDI FORNECIMENTO: | H3: ='BDI FORN.'!C33 -> 0
H4: Não Desonerado; Horista: ; Mensalista:
A6: DOCUMENTO: PLANILHA ORÇAMENTÁRIA DE SERVIÇOS – RESUMO
A8: ITEM | B8: DESCRIÇÃO | F8: QUANTIDADE (M²) | G8: PREÇO UNIT. | H8: PREÇO TOTAL
A10: 1 | B10: PAVIMENTAÇÃO ASFÁLTICA (CBUQ) DE VIAS PÚBLICAS EM MUNICÍPIOS DIVERSOS DO ESTADO DE SERGIPE | F10: 350000 | G10: ='ORÇAMENTO '!E46 -> 0 | H10: =TRUNC(F10*G10,2) -> 0
G12: TOTAL | H12: =SUM(H10:H11) -> 0

Sheet ORÇAMENTO
A1: SERVIÇO: Execução de CBUQ em vias públicas - SRP | H1: DATA BASE:
A2: LOCAL: MUNICÍPIOS DIVERSOS, ESTADO DE SERGIPE | H2: BDI: | I2: ='RESUMO DO ORÇAMENTO'!H2 -> 0
H3: BDI FORNEC: | I3: ='BDI FORN.'!C33 -> 0
I4: Não Desonerado; Horista: ; Mensalista:
A6: DOCUMENTO: PLANILHA ORÇAMENTÁRIA DOS SERVIÇOS
A8: ITEM | B8: BANCO | C8: CÓDIGO | D8: DESCRIÇÃO | E8: UNID. | F8: QUANTIDADE | G8: CUSTO UNIT. | H8: PREÇO UNIT. | I8: PREÇO TOTAL
A10: 1 | D10: SERVIÇOS PRELIMINARES E ADM LOCAL
A11: 1.1 | B11: CODEVASF 225 | C11: Próprio | D11: Mobilização/Desmobilização de Pessoal e Equipamentos (CDVSF) | E11: und | F11: 1 | H11: =TRUNC((1+$I$2)*G11,2) -> 0 | I11: =TRUNC(F11*H11,2) -> 0
A12: 1.2 | B12: 74209/001 | C12: SINAPI | D12: PLACA DE OBRA EM CHAPA DE ACO GALVANIZADO | E12: m² | F12: ='MEMÓRIA DE CÁLCULO GERAL'!C23 -> 6.48 | H12: =TRUNC((1+$I$2)*G12,2) -> 0 | I12: =TRUNC(F12*H12,2) -> 0
A13: 1.3 | B13: CODEVASF 194 | C13: Próprio | D13: Administração Local | E13: und | F13: 1 | H13: 0 | I13: =TRUNC(F13*H13,2) -> 0
A14: 2 | D14: MOVIMENTO DE TERRA
A15: 2.1 | B15: 2548 | C15: ORSE | D15: Locação de serviços de terraplenagem de obras civis | E15: m² | F15: ='MEMÓRIA DE CÁLCULO GERAL'!C41 -> 14000 | H15: 0 | I15: =TRUNC(F15*H15,2) -> 0
A16: 2.2 | B16: 100575 | C16: SINAPI | D16: REGULARIZAÇÃO DE SUPERFÍCIES COM MOTONIVELADORA. AF_11/2019 | E16: m² | F16: ='MEMÓRIA DE CÁLCULO GERAL'!C45 -> 14000 | H16: 0 | I16: 0
A17: 2.3 | B17: 100576 | C17: SINAPI | D17: REGULARIZAÇÃO E COMPACTAÇÃO DE SUBLEITO DE SOLO PREDOMINANTEMENTE ARGILOSO. AF_11/2019 | E17: m² | F17: ='MEMÓRIA DE CÁLCULO GERAL'!C49 -> 1400 | H17: 0 | I17: 0
A18: 2.4 | B18: 100577 | C18: SINAPI | D18: REGULARIZAÇÃO E COMPACTAÇÃO DE SUBLEITO DE SOLO PREDOMINANTEMENTE ARENOSO. AF_11/2019 | E18: m² | F18: ='MEMÓRIA DE CÁLCULO GERAL'!C53 -> 1400 | H18: 0 | I18: 0
A19: 2.5 | B19: 101768 | C19: SINAPI | D19: EXECUÇÃO E COMPACTAÇÃO DE BASE E OU SUB BASE PARA PAVIMENTAÇÃO DE SOLO ESTABILIZADO GRANULOMETRICAMENTE SEM MISTURA DE SOLOS - EXCLUSIVE SOLO, ESCAVAÇÃO, CARGA E TRANSPORTE. AF_11/2019 | E19: m³ | F19: ='MEMÓRIA DE CÁLCULO GERAL'!C57 -> 420 | H19: 0 | I19: 0
A20: 2.6 | B20: 101124 | C20: SINAPI | D20: ESCAVAÇÃO HORIZONTAL, INCLUINDO CARGA E DESCARGA EM SOLO DE 1A CATEGORIA COM TRATOR DE ESTEIRAS (100HP/LÂMINA: 2,19M3). AF_07/2020 | E20: m³ | F20: ='MEMÓRIA DE CÁLCULO GERAL'!C61 -> 483 | H20: 0 | I20: 0
A21: 2.7 | B21: 93589 | C21: SINAPI | D21: TRANSPORTE COM CAMINHÃO BASCULANTE DE 10 M³, EM VIA URBANA EM REVESTIMENTO PRIMÁRIO (UNIDADE: M3XKM). AF_07/2020 | E21: M3XKM | F21: ='MEMÓRIA DE CÁLCULO GERAL'!C65 -> 8694 | H21: 0 | I21: 0
A22: 2.8 | B22: 10923 | C22: ORSE | D22: Material para sub-base (adquirido solto na jazida) inclusive limpeza da área, corte e carga (posto na caçamba), exclusive transporte (Ruy - Rita Cacete / São Cristóvão) | E22: m³ | F22: 480 | H22: 0 | I22: 0
A23: 3 | D23: PAVIMENTAÇÃO
A24: 3.1 | B24: 4011352 | C24: SICRO3 | D24: Imprimação com emulsão asfáltica | E24: m² | F24: ='MEMÓRIA DE CÁLCULO GERAL'!C73 -> 14000 | H24: 0 | I24: =TRUNC(F24*H24,2) -> 0
A25: 3.2 | B25: 4011212 | C25: SICRO3 | D25: Varredura da superfície para execução de revestimento asfáltico | E25: m² | F25: ='MEMÓRIA DE CÁLCULO GERAL'!C77 -> 14000 | H25: 0 | I25: =TRUNC(F25*H25,2) -> 0
A26: 3.3 | B26: 4011353 | C26: SICRO3 | D26: Pintura de ligação | E26: m² | F26: ='MEMÓRIA DE CÁLCULO GERAL'!C81 -> 14000 | H26: 0 | I26: 0
A27: 3.4 | B27: 4011463 | C27: SICRO3 | D27: Concreto asfáltico - faixa C - areia e brita comerciais | E27: t | F27: ='MEMÓRIA DE CÁLCULO GERAL'!C85 -> 1697.5 | H27: 0 | I27: 0
A28: 3.5 | B28: 95878 | C28: SINAPI | D28: TRANSPORTE COM CAMINHÃO BASCULANTE DE 10 M³, EM VIA URBANA PAVIMENTADA, DMT ATÉ 30 KM (UNIDADE: TXKM). AF_07/2020 | E28: TXKM | F28: ='MEMÓRIA DE CÁLCULO GERAL'!C91 -> 50925 | H28: 0 | I28: 0
A29: 3.6 | B29: 93596 | C29: SINAPI | D29: TRANSPORTE COM CAMINHÃO BASCULANTE DE 10 M³, EM VIA URBANA PAVIMENTADA, ADICIONAL PARA DMT EXCEDENTE A 30 KM (UNIDADE: TXKM). AF_07/2020 | E29: TXKM | F29: ='MEMÓRIA DE CÁLCULO GERAL'!C97 -> 118825 | H29: 0 | I29: 0
A30: 4 | D30: AQUISIÇÃO E TRANSPORTE DE MATERIAL ASFÁLTICO | H30: BDI FORNEC:
A31: 4.1 | B31: M2092 | C31: SICRO3 | D31: Emulsão asfáltica para imprimação | E31: t | F31: ='MEMÓRIA DE CÁLCULO GERAL'!C101 -> 18.2 | H31: =TRUNC((1+$I$3)*G31,2) -> 0 | I31: 0
A32: 4.2 | B32: M1946 | C32: SICRO3 | D32: Emulsão asfáltica RR-1C | E32: t | F32: ='MEMÓRIA DE CÁLCULO GERAL'!C105 -> 6.3 | H32: =TRUNC((1+$I$3)*G32,2) -> 0 | I32: 0
A33: 4.3 | B33: M1943 | C33: SICRO3 | D33: Cimento asfáltico CAP 50/70 | E33: t | F33: ='MEMÓRIA DE CÁLCULO GERAL'!C109 -> 96.07 | H33: 0 | I33: 0
A34: 4.4 | B34: 102330 | C34: SINAPI | D34: TRANSPORTE COM CAMINHÃO TANQUE DE TRANSPORTE DE MATERIAL ASFÁLTICO DE 30000 L, EM VIA URBANA PAVIMENTADA, DMT ATÉ 30KM (UNIDADE: TXKM). AF_07/2020 | E34: TXKM | F34: ='MEMÓRIA DE CÁLCULO GERAL'!C117 -> 3617.1 | H34: 0 | I34: 0
A35: 4.5 | B35: 102331 | C35: SINAPI | D35: TRANSPORTE COM CAMINHÃO TANQUE DE TRANSPORTE DE MATERIAL ASFÁLTICO DE 30000 L, EM VIA URBANA PAVIMENTADA, ADICIONAL PARA DMT EXCEDENTE A 30 KM (UNIDADE: TXKM). AF_07/2020 | E35: TXKM | F35: ='MEMÓRIA DE CÁLCULO GERAL'!C125 -> 44610.9 | H35: 0 | I35: 0
A36: 5 | D36: SINALIZAÇÃO
A37: 5.1 | B37: 5213440 | C37: SICRO3 | D37: Fornecimento e implantação de placa de regulamentação em aço D = 0,60 m - película retrorrefletiva tipo I + SI | E37: un | F37: ='MEMÓRIA DE CÁLCULO GERAL'!C129 -> 4 | H37: =TRUNC((1+$I$2)*G37,2) -> 0 | I37: 0
A38: 5.2 | B38: 5213851 | C38: SICRO3 | D38: Fornecimento e implantação de suporte metálico galvanizado para placa de regulamentação - D = 0,60 m | E38: un | F38: ='MEMÓRIA DE CÁLCULO GERAL'!C133 -> 4 | H38: 0 | I38: 0
A39: 6 | D39: DRENAGEM
A40: 6.1 | B40: 2003373 | C40: SICRO3 | D40: Meio fio de concreto - MFC 03 - areia e brita comerciais - fôrma de madeira | E40: m | F40: 4000 | H40: 0 | I40: 0
A41: 7 | D41: PROJETO EXECUTIVO
A42: 7.1 | B42: 9345 | C42: ORSE | D42: Levantamento topográfico planimétrico de rua (via pública) e semi - cadastro de imóveis | E42: m | F42: ='MEMÓRIA DE CÁLCULO GERAL'!C157 -> 2000 | H42: =TRUNC((1+$I$2)*G42,2) -> 0 | I42: 0
A43: 7.2 | B43: 13587 | C43: ORSE | D43: Projeto de Pavimentação | E43: Km | F43: ='MEMÓRIA DE CÁLCULO GERAL'!C161 -> 2 | H43: 0 | I43: 0
A44: 7.3 | B44: CODEVASF 226 | C44: Próprio | D44: Ensaios geotécnicos (CDVSF) | E44: m² | F44: ='MEMÓRIA DE CÁLCULO GERAL'!C165 -> 14000 | H44: 0 | I44: 0
A46: VALOR DO PAVIMENTO POR M² | E46: =TRUNC(SUBTOTAL(9,I11:I44)/F16,2) -> 0

Sheet CPUs
C1: Composições Analíticas com Preço Unitário | G1: B.D.I. | I1: Encargos Sociais
C2: Execução de CBUQ em vias públicas - SRP | G2: ='RESUMO DO ORÇAMENTO'!H2 -> 0 | I2: Não Desonerado: Horista: Mensalista:
A3: Composições Analíticas com Preço Unitário
A4: Composições Principais
A5: 1.1 | B5: Código | C5: Banco | D5: Descrição | E5: Tipo | G5: Und | H5: Quant. | I5: Valor Unit | J5: Total
A6: Composição | B6: CODEVASF 225 | C6: Próprio | D6: Mobilização/Desmobilização de Pessoal e Equipamentos (CDVSF) | E6: CANT - CANTEIRO DE OBRAS | G6: und | H6: 1
A7: Insumo | B7: 2480 | C7: ORSE | D7: Pick-up, capacidade 1,2 t | E7: Equipamento | G7: h | H7: 16
A8: Insumo | B8: 2452 | C8: ORSE | D8: Caminhao toco, PBT = 9700kg, com carroceria de madeira 2,50x7,00x0,50m, potência 160 cv | E8: Equipamento | G8: h | H8: 64
A9: Insumo | B9: 00004222 | C9: SINAPI | D9: GASOLINA COMUM | E9: Material | G9: L | H9: 80
A10: Insumo | B10: 00004221 | C10: SINAPI | D10: OLEO DIESEL COMBUSTIVEL COMUM | E10: Material | G10: L | H10: 320
A14: 1.2 | B14: Código | C14: Banco | D14: Descrição | E14: Tipo | G14: Und | H14: Quant. | I14: Valor Unit | J14: Total
A15: Composição | B15: 74209/001 | C15: SINAPI | D15: PLACA DE OBRA EM CHAPA DE ACO GALVANIZADO | E15: CANT - CANTEIRO DE OBRAS | G15: m² | H15: 1
A16: Composição Auxiliar | B16: 94962 | C16: SINAPI | D16: CONCRETO MAGRO PARA LASTRO, TRAÇO 1:4,5:4,5 (EM MASSA SECA DE CIMENTO/ AREIA MÉDIA/ BRITA 1) - PREPARO MECÂNICO COM BETONEIRA 400 L. AF_05/2021 | E16: FUES - FUNDAÇÕES E ESTRUTURAS | G16: m³ | H16: 0.01
A17: Composição Auxiliar | B17: 88262 | C17: SINAPI | D17: CARPINTEIRO DE FORMAS COM ENCARGOS COMPLEMENTARES | E17: SEDI - SERVIÇOS DIVERSOS | G17: H | H17: 1
A18: Composição Auxiliar | B18: 88316 | C18: SINAPI | D18: SERVENTE COM ENCARGOS COMPLEMENTARES | E18: SEDI - SERVIÇOS DIVERSOS | G18: H | H18: 2
A19: Insumo | B19: 00004813 | C19: SINAPI | D19: PLACA DE OBRA (PARA CONSTRUCAO CIVIL) EM CHAPA GALVANIZADA *N. 22*, ADESIVADA, DE *2,0 X 1,125* M | E19: Material | G19: m² | H19: 1
A20: Insumo | B20: 00005075 | C20: SINAPI | D20: PREGO DE ACO POLIDO COM CABECA 18 X 30 (2 3/4 X 10) | E20: Material | G20: KG | H20: 0.11
A21: Insumo | B21: 00004491 | C21: SINAPI | D21: PONTALETE DE MADEIRA NAO APARELHADA *7,5 X 7,5* CM (3 X 3 ") PINUS, MISTA OU EQUIVALENTE DA REGIAO | E21: Material | G21: M | H21: 4
A22: Insumo | B22: 00004417 | C22: SINAPI | D22: SARRAFO NAO APARELHADO *2,5 X 7* CM, EM MACARANDUBA, ANGELIM OU EQUIVALENTE DA REGIAO - BRUTA | E22: Material | G22: M | H22: 1
A26: 1.3 | B26: Código | C26: Banco | D26: Descrição | E26: Tipo | G26: Und | H26: Quant. | I26: Valor Unit | J26: Total
A27: Composição | B27: CODEVASF 224 | C27: Próprio | D27: Administração Local (CDVSF) | E27: CANT - CANTEIRO DE OBRAS | G27: und | H27: 1
A28: Composição Auxiliar | B28: 93568 | C28: SINAPI | D28: ENGENHEIRO CIVIL DE OBRA SENIOR COM ENCARGOS COMPLEMENTARES | E28: SEDI - SERVIÇOS DIVERSOS | G28: MES | H28: 0.5
A29: Composição Auxiliar | B29: 93572 | C29: SINAPI | D29: ENCARREGADO GERAL DE OBRAS COM ENCARGOS COMPLEMENTARES | E29: SEDI - SERVIÇOS DIVERSOS | G29: MES | H29: 1
A30: Insumo | B30: 4298 | C30: ORSE | D30: Aluguel de container - Escritório com banheiro - 6,20 x 2,40m, equipado com Ar condicionado | E30: Serviços | G30: mês | H30: 4
A31: Insumo | B31: 10555 | C31: ORSE | D31: Consumo de energia elétrica | E31: Serviços | G31: mês | H31: 1
A32: Insumo | B32: 10554 | C32: ORSE | D32: Água - dispêndio mensal | E32: Serviços | G32: mês | H32: 1
A33: Insumo | B33: 10563 | C33: ORSE | D33: Material de limpeza | E33: Material | G33: mês | H33: 1
A34: Insumo | B34: 2480 | C34: ORSE | D34: Pick-up, capacidade 1,2 t | E34: Equipamento | G34: h | H34: 600
A35: Insumo | B35: 00004221 | C35: SINAPI | D35: OLEO DIESEL COMBUSTIVEL COMUM | E35: Material | G35: L | H35: 180
A39: 2.1 | B39: Código | C39: Banco | D39: Descrição | E39: Tipo | G39: Und | H39: Quant. | I39: Valor Unit | J39: Total
A40: Composição | B40: 2548 | C40: ORSE | D40: Locação de serviços de terraplenagem de obras civis | E40: Locação de Serviços de Terraplenagem e Acompanhamento Topográfico da Obra | G40: m² | H40: 1
A41: Insumo | B41: 48 | C41: ORSE | D41: Auxiliar topografia - T4 - Segundo grau completo - DNIT - Mês de ref.: 02/20 | E41: Mão de Obra | G41: h | H41: 0.0333
A42: Insumo | B42: 70 | C42: ORSE | D42: Topografo - T2 - Fonte DNIT - Mês de ref.: 02/20 | E42: Mão de Obra | G42: h | H42: 0.0167
A46: 2.2 | B46: Código | C46: Banco | D46: Descrição | E46: Tipo | G46: Und | H46: Quant. | I46: Valor Unit | J46: Total
A47: Composição | B47: 100575 | C47: SINAPI | D47: REGULARIZAÇÃO DE SUPERFÍCIES COM MOTONIVELADORA. AF_11/2019 | E47: PAVI - PAVIMENTAÇÃO | G47: m² | H47: 1
A48: Composição Auxiliar | B48: 5934 | C48: SINAPI | D48: MOTONIVELADORA POTÊNCIA BÁSICA LÍQUIDA (PRIMEIRA MARCHA) 125 HP, PESO BRUTO 13032 KG, LARGURA DA LÂMINA DE 3,7 M - CHI DIURNO. AF_06/2014 | E48: CHOR - CUSTOS HORÁRIOS DE MÁQUINAS E EQUIPAMENTOS | G48: CHI | H48: 0.001
A49: Composição Auxiliar | B49: 5932 | C49: SINAPI | D49: MOTONIVELADORA POTÊNCIA BÁSICA LÍQUIDA (PRIMEIRA MARCHA) 125 HP, PESO BRUTO 13032 KG, LARGURA DA LÂMINA DE 3,7 M - CHP DIURNO. AF_06/2014 | E49: CHOR - CUSTOS HORÁRIOS DE MÁQUINAS E EQUIPAMENTOS | G49: CHP | H49: 0.0001
A50: Composição Auxiliar | B50: 88316 | C50: SINAPI | D50: SERVENTE COM ENCARGOS COMPLEMENTARES | E50: SEDI - SERVIÇOS DIVERSOS | G50: H | H50: 0.001
A54: 2.3 | B54: Código | C54: Banco | D54: Descrição | E54: Tipo | G54: Und | H54: Quant. | I54: Valor Unit | J54: Total
A55: Composição | B55: 100576 | C55: SINAPI | D55: REGULARIZAÇÃO E COMPACTAÇÃO DE SUBLEITO DE SOLO PREDOMINANTEMENTE ARGILOSO. AF_11/2019 | E55: PAVI - PAVIMENTAÇÃO | G55: m² | H55: 1
A56: Composição Auxiliar | B56: 5934 | C56: SINAPI | D56: MOTONIVELADORA POTÊNCIA BÁSICA LÍQUIDA (PRIMEIRA MARCHA) 125 HP, PESO BRUTO 13032 KG, LARGURA DA LÂMINA DE 3,7 M - CHI DIURNO. AF_06/2014 | E56: CHOR - CUSTOS HORÁRIOS DE MÁQUINAS E EQUIPAMENTOS | G56: CHI | H56: 0.008
A57: Composição Auxiliar | B57: 5903 | C57: SINAPI | D57: CAMINHÃO PIPA 10.000 L TRUCADO, PESO BRUTO TOTAL 23.000 KG, CARGA ÚTIL MÁXIMA 15.935 KG, DISTÂNCIA ENTRE EIXOS 4,8 M, POTÊNCIA 230 CV, INCLUSIVE TANQUE DE AÇO PARA TRANSPORTE DE ÁGUA - CHI DIURNO. AF_06/2014 | E57: CHOR - CUSTOS HORÁRIOS DE MÁQUINAS E EQUIPAMENTOS | G57: CHI | H57: 0.007
A58: Composição Auxiliar | B58: 73436 | C58: SINAPI | D58: ROLO COMPACTADOR VIBRATÓRIO PÉ DE CARNEIRO PARA SOLOS, POTÊNCIA 80 HP, PESO OPERACIONAL SEM/COM LASTRO 7,4 / 8,8 T, LARGURA DE TRABALHO 1,68 M - CHP DIURNO. AF_02/2016 | E58: CHOR - CUSTOS HORÁRIOS DE MÁQUINAS E EQUIPAMENTOS | G58: CHP | H58: 0.002
A59: Composição Auxiliar | B59: 93244 | C59: SINAPI | D59: ROLO COMPACTADOR VIBRATÓRIO PÉ DE CARNEIRO PARA SOLOS, POTÊNCIA 80 HP, PESO OPERACIONAL SEM/COM LASTRO 7,4 / 8,8 T, LARGURA DE TRABALHO 1,68 M - CHI DIURNO. AF_02/2016 | E59: CHOR - CUSTOS HORÁRIOS DE MÁQUINAS E EQUIPAMENTOS | G59: CHI | H59: 0.006
A60: Composição Auxiliar | B60: 5901 | C60: SINAPI | D60: CAMINHÃO PIPA 10.000 L TRUCADO, PESO BRUTO TOTAL 23.000 KG, CARGA ÚTIL MÁXIMA 15.935 KG, DISTÂNCIA ENTRE EIXOS 4,8 M, POTÊNCIA 230 CV, INCLUSIVE TANQUE DE AÇO PARA TRANSPORTE DE ÁGUA - CHP DIURNO. AF_06/2014 | E60: CHOR - CUSTOS HORÁRIOS DE MÁQUINAS E EQUIPAMENTOS | G60: CHP | H60: 0.001
A61: Composição Auxiliar | B61: 5932 | C61: SINAPI | D61: MOTONIVELADORA POTÊNCIA BÁSICA LÍQUIDA (PRIMEIRA MARCHA) 125 HP, PESO BRUTO 13032 KG, LARGURA DA LÂMINA DE 3,7 M - CHP DIURNO. AF_06/2014 | E61: CHOR - CUSTOS HORÁRIOS DE MÁQUINAS E EQUIPAMENTOS | G61: CHP | H61: 0.0001
A62: Composição Auxiliar | B62: 88316 | C62: SINAPI | D62: SERVENTE COM ENCARGOS COMPLEMENTARES | E62: SEDI - SERVIÇOS DIVERSOS | G62: H | H62: 0.008
A66: 2.4 | B66: Código | C66: Banco | D66: Descrição | E66: Tipo | G66: Und | H66: Quant. | I66: Valor Unit | J66: Total
A67: Composição | B67: 100577 | C67: SINAPI | D67: REGULARIZAÇÃO E COMPACTAÇÃO DE SUBLEITO DE SOLO PREDOMINANTEMENTE ARENOSO. AF_11/2019 | E67: PAVI - PAVIMENTAÇÃO | G67: m² | H67: 1
A68: Composição Auxiliar | B68: 5934 | C68: SINAPI | D68: MOTONIVELADORA POTÊNCIA BÁSICA LÍQUIDA (PRIMEIRA MARCHA) 125 HP, PESO BRUTO 13032 KG, LARGURA DA LÂMINA DE 3,7 M - CHI DIURNO. AF_06/2014 | E68: CHOR - CUSTOS HORÁRIOS DE MÁQUINAS E EQUIPAMENTOS | G68: CHI | H68: 0.003
A69: Composição Auxiliar | B69: 96464 | C69: SINAPI | D69: ROLO COMPACTADOR DE PNEUS, ESTATICO, PRESSAO VARIAVEL, POTENCIA 110 HP, PESO SEM/COM LASTRO 10,8/27 T, LARGURA DE ROLAGEM 2,30 M - CHI DIURNO. AF_06/2017 | E69: CHOR - CUSTOS HORÁRIOS DE MÁQUINAS E EQUIPAMENTOS | G69: CHI | H69: 0.002
A70: Composição Auxiliar | B70: 5932 | C70: SINAPI | D70: MOTONIVELADORA POTÊNCIA BÁSICA LÍQUIDA (PRIMEIRA MARCHA) 125 HP, PESO BRUTO 13032 KG, LARGURA DA LÂMINA DE 3,7 M - CHP DIURNO. AF_06/2014 | E70: CHOR - CUSTOS HORÁRIOS DE MÁQUINAS E EQUIPAMENTOS | G70: CHP | H70: 0.0001
A71: Composição Auxiliar | B71: 96463 | C71: SINAPI | D71: ROLO COMPACTADOR DE PNEUS, ESTATICO, PRESSAO VARIAVEL, POTENCIA 110 HP, PESO SEM/COM LASTRO 10,8/27 T, LARGURA DE ROLAGEM 2,30 M - CHP DIURNO. AF_06/2017 | E71: CHOR - CUSTOS HORÁRIOS DE MÁQUINAS E EQUIPAMENTOS | G71: CHP | H71: 0.001
A72: Composição Auxiliar | B72: 5903 | C72: SINAPI | D72: CAMINHÃO PIPA 10.000 L TRUCADO, PESO BRUTO TOTAL 23.000 KG, CARGA ÚTIL MÁXIMA 15.935 KG, DISTÂNCIA ENTRE EIXOS 4,8 M, POTÊNCIA 230 CV, INCLUSIVE TANQUE DE AÇO PARA TRANSPORTE DE ÁGUA - CHI DIURNO. AF_06/2014 | E72: CHOR - CUSTOS HORÁRIOS DE MÁQUINAS E EQUIPAMENTOS | G72: CHI | H72: 0.002
A73: Composição Auxiliar | B73: 5901 | C73: SINAPI | D73: CAMINHÃO PIPA 10.000 L TRUCADO, PESO BRUTO TOTAL 23.000 KG, CARGA ÚTIL MÁXIMA 15.935 KG, DISTÂNCIA ENTRE EIXOS 4,8 M, POTÊNCIA 230 CV, INCLUSIVE TANQUE DE AÇO PARA TRANSPORTE DE ÁGUA - CHP DIURNO. AF_06/2014 | E73: CHOR - CUSTOS HORÁRIOS DE MÁQUINAS E EQUIPAMENTOS | G73: CHP | H73: 0.001
A74: Composição Auxiliar | B74: 88316 | C74: SINAPI | D74: SERVENTE COM ENCARGOS COMPLEMENTARES | E74: SEDI - SERVIÇOS DIVERSOS | G74: H | H74: 0.003
A78: 2.5 | B78: Código | C78: Banco | D78: Descrição | E78: Tipo | G78: Und | H78: Quant. | I78: Valor Unit | J78: Total
A79: Composição | B79: 101768 | C79: SINAPI | D79: EXECUÇÃO E COMPACTAÇÃO DE BASE E OU SUB BASE PARA PAVIMENTAÇÃO DE SOLO ESTABILIZADO GRANULOMETRICAMENTE SEM MISTURA DE SOLOS - EXCLUSIVE SOLO, ESCAVAÇÃO, CARGA E TRANSPORTE. AF_11/2019 | E79: PAVI - PAVIMENTAÇÃO | G79: m³ | H79: 1
A80: Composição Auxiliar | B80: 5921 | C80: SINAPI | D80: GRADE DE DISCO REBOCÁVEL COM 20 DISCOS 24" X 6 MM COM PNEUS PARA TRANSPORTE - CHP DIURNO. AF_06/2014 | E80: CHOR - CUSTOS HORÁRIOS DE MÁQUINAS E EQUIPAMENTOS | G80: CHP | H80: 0.0072
A81: Composição Auxiliar | B81: 73436 | C81: SINAPI | D81: ROLO COMPACTADOR VIBRATÓRIO PÉ DE CARNEIRO PARA SOLOS, POTÊNCIA 80 HP, PESO OPERACIONAL SEM/COM LASTRO 7,4 / 8,8 T, LARGURA DE TRABALHO 1,68 M - CHP DIURNO. AF_02/2016 | E81: CHOR - CUSTOS HORÁRIOS DE MÁQUINAS E EQUIPAMENTOS | G81: CHP | H81: 0.0407
A82: Composição Auxiliar | B82: 89035 | C82: SINAPI | D82: TRATOR DE PNEUS, POTÊNCIA 85 CV, TRAÇÃO 4X4, PESO COM LASTRO DE 4.675 KG - CHP DIURNO. AF_06/2014 | E82: CHOR - CUSTOS HORÁRIOS DE MÁQUINAS E EQUIPAMENTOS | G82: CHP | H82: 0.0072
A83: Composição Auxiliar | B83: 5934 | C83: SINAPI | D83: MOTONIVELADORA POTÊNCIA BÁSICA LÍQUIDA (PRIMEIRA MARCHA) 125 HP, PESO BRUTO 13032 KG, LARGURA DA LÂMINA DE 3,7 M - CHI DIURNO. AF_06/2014 | E83: CHOR - CUSTOS HORÁRIOS DE MÁQUINAS E EQUIPAMENTOS | G83: CHI | H83: 0.0516
A84: Composição Auxiliar | B84: 96464 | C84: SINAPI | D84: ROLO COMPACTADOR DE PNEUS, ESTATICO, PRESSAO VARIAVEL, POTENCIA 110 HP, PESO SEM/COM LASTRO 10,8/27 T, LARGURA DE ROLAGEM 2,30 M - CHI DIURNO. AF_06/2017 | E84: CHOR - CUSTOS HORÁRIOS DE MÁQUINAS E EQUIPAMENTOS | G84: CHI | H84: 0.0517
A85: Composição Auxiliar | B85: 5923 | C85: SINAPI | D85: GRADE DE DISCO REBOCÁVEL COM 20 DISCOS 24" X 6 MM COM PNEUS PARA TRANSPORTE - CHI DIURNO. AF_06/2014 | E85: CHOR - CUSTOS HORÁRIOS DE MÁQUINAS E EQUIPAMENTOS | G85: CHI | H85: 0.0503
A86: Composição Auxiliar | B86: 5932 | C86: SINAPI | D86: MOTONIVELADORA POTÊNCIA BÁSICA LÍQUIDA (PRIMEIRA MARCHA) 125 HP, PESO BRUTO 13032 KG, LARGURA DA LÂMINA DE 3,7 M - CHP DIURNO. AF_06/2014 | E86: CHOR - CUSTOS HORÁRIOS DE MÁQUINAS E EQUIPAMENTOS | G86: CHP | H86: 0.0059
A87: Composição Auxiliar | B87: 93244 | C87: SINAPI | D87: ROLO COMPACTADOR VIBRATÓRIO PÉ DE CARNEIRO PARA SOLOS, POTÊNCIA 80 HP, PESO OPERACIONAL SEM/COM LASTRO 7,4 / 8,8 T, LARGURA DE TRABALHO 1,68 M - CHI DIURNO. AF_02/2016 | E87: CHOR - CUSTOS HORÁRIOS DE MÁQUINAS E EQUIPAMENTOS | G87: CHI | H87: 0.0058
A88: Composição Auxiliar | B88: 96463 | C88: SINAPI | D88: ROLO COMPACTADOR DE PNEUS, ESTATICO, PRESSAO VARIAVEL, POTENCIA 110 HP, PESO SEM/COM LASTRO 10,8/27 T, LARGURA DE ROLAGEM 2,30 M - CHP DIURNO. AF_06/2017 | E88: CHOR - CUSTOS HORÁRIOS DE MÁQUINAS E EQUIPAMENTOS | G88: CHP | H88: 0.0058
A89: Composição Auxiliar | B89: 5903 | C89: SINAPI | D89: CAMINHÃO PIPA 10.000 L TRUCADO, PESO BRUTO TOTAL 23.000 KG, CARGA ÚTIL MÁXIMA 15.935 KG, DISTÂNCIA ENTRE EIXOS 4,8 M, POTÊNCIA 230 CV, INCLUSIVE TANQUE DE AÇO PARA TRANSPORTE DE ÁGUA - CHI DIURNO. AF_06/2014 | E89: CHOR - CUSTOS HORÁRIOS DE MÁQUINAS E EQUIPAMENTOS | G89: CHI | H89: 0.0168
A90: Composição Auxiliar | B90: 5901 | C90: SINAPI | D90: CAMINHÃO PIPA 10.000 L TRUCADO, PESO BRUTO TOTAL 23.000 KG, CARGA ÚTIL MÁXIMA 15.935 KG, DISTÂNCIA ENTRE EIXOS 4,8 M, POTÊNCIA 230 CV, INCLUSIVE TANQUE DE AÇO PARA TRANSPORTE DE ÁGUA - CHP DIURNO. AF_06/2014 | E90: CHOR - CUSTOS HORÁRIOS DE MÁQUINAS E EQUIPAMENTOS | G90: CHP | H90: 0.0527
A91: Composição Auxiliar | B91: 89036 | C91: SINAPI | D91: TRATOR DE PNEUS, POTÊNCIA 85 CV, TRAÇÃO 4X4, PESO COM LASTRO DE 4.675 KG - CHI DIURNO. AF_06/2014 | E91: CHOR - CUSTOS HORÁRIOS DE MÁQUINAS E EQUIPAMENTOS | G91: CHI | H91: 0.0503
A92: Composição Auxiliar | B92: 88316 | C92: SINAPI | D92: SERVENTE COM ENCARGOS COMPLEMENTARES | E92: SEDI - SERVIÇOS DIVERSOS | G92: H | H92: 0.0575
A96: 2.6 | B96: Código | C96: Banco | D96: Descrição | E96: Tipo | G96: Und | H96: Quant. | I96: Valor Unit | J96: Total
A97: Composição | B97: 101124 | C97: SINAPI | D97: ESCAVAÇÃO HORIZONTAL, INCLUINDO CARGA E DESCARGA EM SOLO DE 1A CATEGORIA COM TRATOR DE ESTEIRAS (100HP/LÂMINA: 2,19M3). AF_07/2020 | E97: MOVT - MOVIMENTO DE TERRA | G97: m³ | H97: 1
A98: Composição Auxiliar | B98: 89032 | C98: SINAPI | D98: TRATOR DE ESTEIRAS, POTÊNCIA 100 HP, PESO OPERACIONAL 9,4 T, COM LÂMINA 2,19 M3 - CHP DIURNO. AF_06/2014 | E98: CHOR - CUSTOS HORÁRIOS DE MÁQUINAS E EQUIPAMENTOS | G98: CHP | H98: 0.0115
A99: Composição Auxiliar | B99: 89031 | C99: SINAPI | D99: TRATOR DE ESTEIRAS, POTÊNCIA 100 HP, PESO OPERACIONAL 9,4 T, COM LÂMINA 2,19 M3 - CHI DIURNO. AF_06/2014 | E99: CHOR - CUSTOS HORÁRIOS DE MÁQUINAS E EQUIPAMENTOS | G99: CHI | H99: 0.0195
A100: Composição Auxiliar | B100: 100974 | C100: SINAPI | D100: CARGA, MANOBRA E DESCARGA DE SOLOS E MATERIAIS GRANULARES EM CAMINHÃO BASCULANTE 10 M³ - CARGA COM PÁ CARREGADEIRA (CAÇAMBA DE 1,7 A 2,8 M³ / 128 HP) E DESCARGA LIVRE (UNIDADE: M3). AF_07/2020 | E100: TRAN - TRANSPORTES, CARGAS E DESCARGAS | G100: m³ | H100: 1.25
A101: Composição Auxiliar | B101: 88316 | C101: SINAPI | D101: SERVENTE COM ENCARGOS COMPLEMENTARES | E101: SEDI - SERVIÇOS DIVERSOS | G101: H | H101: 0.031
A105: 2.7 | B105: Código | C105: Banco | D105: Descrição | E105: Tipo | G105: Und | H105: Quant. | I105: Valor Unit | J105: Total
A106: Composição | B106: 93589 | C106: SINAPI | D106: TRANSPORTE COM CAMINHÃO BASCULANTE DE 10 M³, EM VIA URBANA EM REVESTIMENTO PRIMÁRIO (UNIDADE: M3XKM). AF_07/2020 | E106: TRAN - TRANSPORTES, CARGAS E DESCARGAS | G106: M3XKM | H106: 1
A107: Composição Auxiliar | B107: 91386 | C107: SINAPI | D107: CAMINHÃO BASCULANTE 10 M3, TRUCADO CABINE SIMPLES, PESO BRUTO TOTAL 23.000 KG, CARGA ÚTIL MÁXIMA 15.935 KG, DISTÂNCIA ENTRE EIXOS 4,80 M, POTÊNCIA 230 CV INCLUSIVE CAÇAMBA METÁLICA - CHP DIURNO. AF_06/2014 | E107: CHOR - CUSTOS HORÁRIOS DE MÁQUINAS E EQUIPAMENTOS | G107: CHP | H107: 0.009
A108: Composição Auxiliar | B108: 91387 | C108: SINAPI | D108: CAMINHÃO BASCULANTE 10 M3, TRUCADO CABINE SIMPLES, PESO BRUTO TOTAL 23.000 KG, CARGA ÚTIL MÁXIMA 15.935 KG, DISTÂNCIA ENTRE EIXOS 4,80 M, POTÊNCIA 230 CV INCLUSIVE CAÇAMBA METÁLICA - CHI DIURNO. AF_06/2014 | E108: CHOR - CUSTOS HORÁRIOS DE MÁQUINAS E EQUIPAMENTOS | G108: CHI | H108: 0.0039
A112: 3.1 | B112: Código | C112: Banco | D112: Descrição | E112: Tipo | G112: Und | H112: Quant. | I112: Valor Unit | J112: Total
A113: Composição | B113: 4011352 | C113: SICRO3 | D113: Imprimação com emulsão asfáltica | G113: m² | H113: 1
A114: A | B114: Código | C114: Banco | D114: Equipamentos | E114: Quantidade | F114: Utilização | H114: Custo Operacional | J114: Custo Horário
F115: Operativa | G115: Improdutiva | H115: Operativa | I115: Improdutiva
A116: Insumo | B116: E9509 | C116: SICRO3 | D116: Caminhão tanque distribuidor de asfalto com capacidade de 6.000 l - 7 kW/136 kW | E116: 1 | F116: 1 | G116: 0
A117: Insumo | B117: E9558 | C117: SICRO3 | D117: Tanque de estocagem de asfalto com capacidade de 30.000 l | E117: 2 | F117: 1 | G117: 0
G118: Custo Horário de Equipamentos =>
A119: B | B119: Código | C119: Banco | D119: Mão de Obra | E119: Quantidade | F119: Salário Hora | J119: Custo Horário
A120: Insumo | B120: P9824 | C120: SICRO3 | D120: Servente | E120: 2
G121: Custo Horário da Mão de Obra =>
G122: Adc.M.O. - Ferramentas ( 0,0%) =>
G123: Custo Horário de Execução =>
G124: Fator de Influencia da Chuva - FIC =>
G125: Custo do FIC =>
G126: Produção de Equipe =>
G127: Custo Unitário de Execução =>
A131: 3.2 | B131: Código | C131: Banco | D131: Descrição | E131: Tipo | G131: Und | H131: Quant. | I131: Valor Unit | J131: Total
A132: Composição | B132: 4011212 | C132: SICRO3 | D132: Varredura da superfície para execução de revestimento asfáltico | G132: m² | H132: 1
A133: A | B133: Código | C133: Banco | D133: Equipamentos | E133: Quantidade | F133: Utilização | H133: Custo Operacional | J133: Custo Horário
F134: Operativa | G134: Improdutiva | H134: Operativa | I134: Improdutiva
A135: Insumo | B135: E9577 | C135: SICRO3 | D135: Trator agrícola - 77 kW | E135: 1 | F135: 1 | G135: 0 | H135: 97.3235
A136: Insumo | B136: E9544 | C136: SICRO3 | D136: Vassoura mecânica rebocável | E136: 1 | F136: 1 | G136: 0 | H136: 8.871
G137: Custo Horário de Equipamentos =>
G138: Custo Horário de Execução =>
G139: Fator de Influencia da Chuva - FIC =>
G140: Custo do FIC =>
G141: Produção de Equipe =>
G142: Custo Unitário de Execução =>
A146: 3.3 | B146: Código | C146: Banco | D146: Descrição | E146: Tipo | G146: Und | H146: Quant. | I146: Valor Unit | J146: Total
A147: Composição | B147: 4011353 | C147: SICRO3 | D147: Pintura de ligação | G147: m² | H147: 1
A148: A | B148: Código | C148: Banco | D148: Equipamentos | E148: Quantidade | F148: Utilização | H148: Custo Operacional | J148: Custo Horário
F149: Operativa | G149: Improdutiva | H149: Operativa | I149: Improdutiva
A150: Insumo | B150: E9509 | C150: SICRO3 | D150: Caminhão tanque distribuidor de asfalto com capacidade de 6.000 l - 7 kW/136 kW | E150: 1 | F150: 1 | G150: 0 | H150: 188.7922
A151: Insumo | B151: E9558 | C151: SICRO3 | D151: Tanque de estocagem de asfalto com capacidade de 30.000 l | E151: 2 | F151: 1 | G151: 0 | H151: 48.5772
G152: Custo Horário de Equipamentos =>
A153: B | B153: Código | C153: Banco | D153: Mão de Obra | E153: Quantidade | F153: Salário Hora | J153: Custo Horário
A154: Insumo | B154: P9824 | C154: SICRO3 | D154: Servente | E154: 2
G155: Custo Horário da Mão de Obra =>
G156: Adc.M.O. - Ferramentas ( 0,0%) =>
G157: Custo Horário de Execução =>
G158: Fator de Influencia da Chuva - FIC =>
G159: Custo do FIC =>
G160: Produção de Equipe =>
G161: Custo Unitário de Execução =>
A165: 3.4 | B165: Código | C165: Banco | D165: Descrição | E165: Tipo | G165: Und | H165: Quant. | I165: Valor Unit | J165: Total
A166: Composição | B166: 4011463 | C166: SICRO3 | D166: Concreto asfáltico - faixa C - areia e brita comerciais | G166: t | H166: 1
A167: A | B167: Código | C167: Banco | D167: Equipamentos | E167: Quantidade | F167: Utilização | H167: Custo Operacional | J167: Custo Horário
F168: Operativa | G168: Improdutiva | H168: Operativa | I168: Improdutiva
A169: Insumo | B169: E9762 | C169: SICRO3 | D169: Rolo compactador de pneus autopropelido de 27 t - 85 kW | E169: 1 | F169: 0.71 | G169: 0.29
A170: Insumo | B170: E9681 | C170: SICRO3 | D170: Rolo compactador liso tandem vibratório autopropelido de 10,4 t - 82 kW | E170: 1 | F170: 0.82 | G170: 0.18
A171: Insumo | B171: E9545 | C171: SICRO3 | D171: Vibroacabadora de asfalto sobre esteiras - 82 kW | E171: 1 | F171: 1 | G171: 0
G172: Custo Horário de Equipamentos =>
A173: B | B173: Código | C173: Banco | D173: Mão de Obra | E173: Quantidade | F173: Salário Hora | J173: Custo Horário
A174: Insumo | B174: P9824 | C174: SICRO3 | D174: Servente | E174: 8
G175: Custo Horário da Mão de Obra =>
G176: Adc.M.O. - Ferramentas ( 0,0%) =>
G177: Custo Horário de Execução =>
G178: Fator de Influencia da Chuva - FIC =>
G179: Custo do FIC =>
G180: Produção de Equipe =>
G181: Custo Unitário de Execução =>
A182: D | B182: Banco | C182: Código | D182: Atividades Auxiliares | E182: Quantidade | F182: Unidade | G182: Preço Unitário | J182: Custo Horário
A183: Atividade Auxiliar | B183: SICRO3 | C183: 6416078 | D183: Usinagem de concreto asfáltico - faixa C - areia e brita comerciais | E183: 1.02 | F183: t | G183: 123.65
G184: Custo Total das Atividades =>
A185: E | B185: Banco | C185: Insumo | D185: Tempos Fixos | E185: Código | F185: Quantidade | G185: Unidade | H185: Preço Unitário | J185: Custo Horário
A186: Tempo Fixo | B186: SICRO3 | C186: 6416078 | D186: Carga, manobra e descarga de mistura betuminosa a quente em caminhão basculante de 10 m³ - carga em usina de asfalto | E186: 5914649 | F186: 1.02 | G186: t
G187: Custo Total dos Tempos Fixos =>
A191: 3.5 | B191: Código | C191: Banco | D191: Descrição | E191: Tipo | G191: Und | H191: Quant. | I191: Valor Unit | J191: Total
A192: Composição | B192: 95878 | C192: SINAPI | D192: TRANSPORTE COM CAMINHÃO BASCULANTE DE 10 M³, EM VIA URBANA PAVIMENTADA, DMT ATÉ 30 KM (UNIDADE: TXKM). AF_07/2020 | E192: TRAN - TRANSPORTES, CARGAS E DESCARGAS | G192: TXKM | H192: 1
A193: Composição Auxiliar | B193: 91386 | C193: SINAPI | D193: CAMINHÃO BASCULANTE 10 M3, TRUCADO CABINE SIMPLES, PESO BRUTO TOTAL 23.000 KG, CARGA ÚTIL MÁXIMA 15.935 KG, DISTÂNCIA ENTRE EIXOS 4,80 M, POTÊNCIA 230 CV INCLUSIVE CAÇAMBA METÁLICA - CHP DIURNO. AF_06/2014 | E193: CHOR - CUSTOS HORÁRIOS DE MÁQUINAS E EQUIPAMENTOS | G193: CHP | H193: 0.0056
A194: Composição Auxiliar | B194: 91387 | C194: SINAPI | D194: CAMINHÃO BASCULANTE 10 M3, TRUCADO CABINE SIMPLES, PESO BRUTO TOTAL 23.000 KG, CARGA ÚTIL MÁXIMA 15.935 KG, DISTÂNCIA ENTRE EIXOS 4,80 M, POTÊNCIA 230 CV INCLUSIVE CAÇAMBA METÁLICA - CHI DIURNO. AF_06/2014 | E194: CHOR - CUSTOS HORÁRIOS DE MÁQUINAS E EQUIPAMENTOS | G194: CHI | H194: 0.0024
A198: 3.6 | B198: Código | C198: Banco | D198: Descrição | E198: Tipo | G198: Und | H198: Quant. | I198: Valor Unit | J198: Total
A199: Composição | B199: 93596 | C199: SINAPI | D199: TRANSPORTE COM CAMINHÃO BASCULANTE DE 10 M³, EM VIA URBANA PAVIMENTADA, ADICIONAL PARA DMT EXCEDENTE A 30 KM (UNIDADE: TXKM). AF_07/2020 | E199: TRAN - TRANSPORTES, CARGAS E DESCARGAS | G199: TXKM | H199: 1
A200: Composição Auxiliar | B200: 91386 | C200: SINAPI | D200: CAMINHÃO BASCULANTE 10 M3, TRUCADO CABINE SIMPLES, PESO BRUTO TOTAL 23.000 KG, CARGA ÚTIL MÁXIMA 15.935 KG, DISTÂNCIA ENTRE EIXOS 4,80 M, POTÊNCIA 230 CV INCLUSIVE CAÇAMBA METÁLICA - CHP DIURNO. AF_06/2014 | E200: CHOR - CUSTOS HORÁRIOS DE MÁQUINAS E EQUIPAMENTOS | G200: CHP | H200: 0.0022
A201: Composição Auxiliar | B201: 91387 | C201: SINAPI | D201: CAMINHÃO BASCULANTE 10 M3, TRUCADO CABINE SIMPLES, PESO BRUTO TOTAL 23.000 KG, CARGA ÚTIL MÁXIMA 15.935 KG, DISTÂNCIA ENTRE EIXOS 4,80 M, POTÊNCIA 230 CV INCLUSIVE CAÇAMBA METÁLICA - CHI DIURNO. AF_06/2014 | E201: CHOR - CUSTOS HORÁRIOS DE MÁQUINAS E EQUIPAMENTOS | G201: CHI | H201: 0.001
A205: 4.4 | B205: Código | C205: Banco | D205: Descrição | E205: Tipo | G205: Und | H205: Quant. | I205: Valor Unit | J205: Total
A206: Composição | B206: 102330 | C206: SINAPI | D206: TRANSPORTE COM CAMINHÃO TANQUE DE TRANSPORTE DE MATERIAL ASFÁLTICO DE 30000 L, EM VIA URBANA PAVIMENTADA, DMT ATÉ 30KM (UNIDADE: TXKM). AF_07/2020 | E206: TRAN - TRANSPORTES, CARGAS E DESCARGAS | G206: TXKM | H206: 1
A207: Composição Auxiliar | B207: 91646 | C207: SINAPI | D207: CAMINHÃO DE TRANSPORTE DE MATERIAL ASFÁLTICO 30.000 L, COM CAVALO MECÂNICO DE CAPACIDADE MÁXIMA DE TRAÇÃO COMBINADO DE 66.000 KG, POTÊNCIA 360 CV, INCLUSIVE TANQUE DE ASFALTO COM SERPENTINA - CHI DIURNO. AF_08/2015 | E207: CHOR - CUSTOS HORÁRIOS DE MÁQUINAS E EQUIPAMENTOS | G207: CHI | H207: 0.0012
A208: Composição Auxiliar | B208: 91645 | C208: SINAPI | D208: CAMINHÃO DE TRANSPORTE DE MATERIAL ASFÁLTICO 30.000 L, COM CAVALO MECÂNICO DE CAPACIDADE MÁXIMA DE TRAÇÃO COMBINADO DE 66.000 KG, POTÊNCIA 360 CV, INCLUSIVE TANQUE DE ASFALTO COM SERPENTINA - CHP DIURNO. AF_08/2015 | E208: CHOR - CUSTOS HORÁRIOS DE MÁQUINAS E EQUIPAMENTOS | G208: CHP | H208: 0.0028
A212: 4.5 | B212: Código | C212: Banco | D212: Descrição | E212: Tipo | G212: Und | H212: Quant. | I212: Valor Unit | J212: Total
A213: Composição | B213: 102331 | C213: SINAPI | D213: TRANSPORTE COM CAMINHÃO TANQUE DE TRANSPORTE DE MATERIAL ASFÁLTICO DE 30000 L, EM VIA URBANA PAVIMENTADA, ADICIONAL PARA DMT EXCEDENTE A 30 KM (UNIDADE: TXKM). AF_07/2020 | E213: TRAN - TRANSPORTES, CARGAS E DESCARGAS | G213: TXKM | H213: 1
A214: Composição Auxiliar | B214: 91646 | C214: SINAPI | D214: CAMINHÃO DE TRANSPORTE DE MATERIAL ASFÁLTICO 30.000 L, COM CAVALO MECÂNICO DE CAPACIDADE MÁXIMA DE TRAÇÃO COMBINADO DE 66.000 KG, POTÊNCIA 360 CV, INCLUSIVE TANQUE DE ASFALTO COM SERPENTINA - CHI DIURNO. AF_08/2015 | E214: CHOR - CUSTOS HORÁRIOS DE MÁQUINAS E EQUIPAMENTOS | G214: CHI | H214: 0.0005
A215: Composição Auxiliar | B215: 91645 | C215: SINAPI | D215: CAMINHÃO DE TRANSPORTE DE MATERIAL ASFÁLTICO 30.000 L, COM CAVALO MECÂNICO DE CAPACIDADE MÁXIMA DE TRAÇÃO COMBINADO DE 66.000 KG, POTÊNCIA 360 CV, INCLUSIVE TANQUE DE ASFALTO COM SERPENTINA - CHP DIURNO. AF_08/2015 | E215: CHOR - CUSTOS HORÁRIOS DE MÁQUINAS E EQUIPAMENTOS | G215: CHP | H215: 0.0011
A219: 5.1 | B219: Código | C219: Banco | D219: Descrição | E219: Tipo | G219: Und | H219: Quant. | I219: Valor Unit | J219: Total
A220: Composição | B220: 5213440 | C220: SICRO3 | D220: Fornecimento e implantação de placa de regulamentação em aço D = 0,60 m - película retrorrefletiva tipo I + SI | G220: un
A221: A | B221: Código | C221: Banco | D221: Equipamentos | E221: Quantidade | F221: Utilização | H221: Custo Operacional | J221: Custo Horário
F222: Operativa | G222: Improdutiva | H222: Operativa | I222: Improdutiva
A223: Insumo | B223: E9687 | C223: SICRO3 | D223: Caminhão carroceria com capacidade de 5 t - 115 kW | E223: 1 | F223: 0.3 | G223: 0.7
G224: Custo Horário de Equipamentos =>
A225: B | B225: Código | C225: Banco | D225: Mão de Obra | E225: Quantidade | F225: Salário Hora | J225: Custo Horário
A226: Insumo | B226: P9830 | C226: SICRO3 | D226: Montador | E226: 1
A227: Insumo | B227: P9824 | C227: SICRO3 | D227: Servente | E227: 2
G228: Custo Horário da Mão de Obra =>
G229: Adc.M.O. - Ferramentas ( 0,0%) =>
G230: Custo Horário de Execução =>
G231: Fator de Influencia da Chuva - FIC =>
G232: Custo do FIC =>
G233: Produção de Equipe =>
G234: Custo Unitário de Execução =>
A235: D | B235: Banco | C235: Código | D235: Atividades Auxiliares | E235: Quantidade | F235: Unidade | G235: Preço Unitário | J235: Custo Horário
A236: Atividade Auxiliar | B236: SICRO3 | C236: 5213414 | D236: Placa em aço nº 16 galvanizado com película retrorrefletiva tipo I + SI - confecção | E236: 0.36 | F236: m²
G237: Custo Total das Atividades =>
A241: 5.2 | B241: Código | C241: Banco | D241: Descrição | E241: Tipo | G241: Und | H241: Quant. | I241: Valor Unit | J241: Total
A242: Composição | B242: 5213851 | C242: SICRO3 | D242: Fornecimento e implantação de suporte metálico galvanizado para placa de regulamentação - D = 0,60 m | G242: un | H242: 1
A243: A | B243: Código | C243: Banco | D243: Equipamentos | E243: Quantidade | F243: Utilização | H243: Custo Operacional | J243: Custo Horário
F244: Operativa | G244: Improdutiva | H244: Operativa | I244: Improdutiva
A245: Insumo | B245: E9687 | C245: SICRO3 | D245: Caminhão carroceria com capacidade de 5 t - 115 kW | E245: 1 | F245: 0.3 | G245: 0.7
G246: Custo Horário de Equipamentos =>
A247: B | B247: Código | C247: Banco | D247: Mão de Obra | E247: Quantidade | F247: Salário Hora | J247: Custo Horário
A248: Insumo | B248: P9823 | C248: SICRO3 | D248: Serralheiro | E248: 1
A249: Insumo | B249: P9824 | C249: SICRO3 | D249: Servente | E249: 1
G250: Custo Horário da Mão de Obra =>
G251: Adc.M.O. - Ferramentas ( 0,0%) =>
G252: Custo Horário de Execução =>
G253: Fator de Influencia da Chuva - FIC =>
G254: Custo do FIC =>
G255: Produção de Equipe =>
G256: Custo Unitário de Execução =>
A257: C | B257: Banco | C257: Código | D257: Material | E257: Quantidade | F257: Unidade | G257: Preço Unitário | J257: Custo Horário
... 77 more rows

Sheet MEMÓRIA DE CÁLCULO GERAL
A1: SERVIÇO: Execução de CBUQ em vias públicas - SRP | G1: DATA BASE:
A2: LOCAL: MUNICÍPIOS DIVERSOS, ESTADO DE SERGIPE | G2: BDI: | H2: ='RESUMO DO ORÇAMENTO'!H2 -> 0
A3: MEMÓRIA DE CÁLCULO GERAL
A5: LARGURA DA RUA: | C5: 7 | D5: m
A6: COMPRIMENTO DA RUA 1 MÓDULO: | C6: 2000 | D6: m
A7: 1 MÓDULO DE RUA: | C7: =C5*C6 -> 14000 | D7: m²
A8: TOTAL DE LOCALIDADES PREVISTO (POR MÓDULO): | C8: 1 | D8: und
B11: MOBILIZAÇÃO E DESMOBILIZAÇÃO
B13: 1 Unidade
B15: COMPOSIÇÃO DE CUSTO:
B16: Pick-up, capacidade 1,2 t | C16: 4 horas (com o carro) x 2 (nº de veículos) x 2= | H16: =ROUND(4*2*2,2) -> 16 | I16: horas
B17: Caminhão Carroceria de madeira 9 t - fonte:DNIT | C17: 4 horas (com o carro) x 4 (localidades) x 2 (ida e volta) x 2= | H17: =ROUND(4*4*2*2,2) -> 64 | I17: horas
B18: Gasolina comum | C18: 200 (km rodado) x 2 (nº de veículos) / 10 (km/L) x 2= | H18: =ROUND(200*2*2/10,2) -> 80 | I18: litros
B19: Óleo diesel | C19: 200 (km rodado) x 4 (localidades) x 2 (ida e volta)/ 10 (km/L) x 2= | H19: =ROUND(200*4*2*2/10,2) -> 320 | I19: litros
B21: PLACA DE OBRA
B23: 1 (placa) x (3,6x1,8) (m²/placa) x 1 (localidades) = | C23: =ROUND(1*(3.6*1.8)*1,2) -> 6.48 | D23: m²
B26: ADMINISTRAÇÃO LOCAL
B28: 1 Unidade
B30: COMPOSIÇÃO DE CUSTO:
B31: Aluguel mensal de área | E31: 1 | F31: mês
B32: Água - dispêndio mensal | E32: 1 | F32: mês
B33: Consumo de energia elétrica | E33: 1 | F33: mês
B34: Pick-up, capacidade 1,2 t | C34: 10 (horas) x 30(dias) x 2 (1 eng + 1 enc) x 1 (meses) = | G34: =ROUND(10*30*2*1,2) -> 600 | H34: horas
B35: GASOLINA COMUM | C35: 90 (litros/mês) x 1 (meses) x 2 (veículos)= | G35: =ROUND(90*1*2,2) -> 180 | H35: litros
B36: ENGENHEIRO CIVIL | C36: 0,5 (engenheiro ) x 1 (mês) = | G36: 0.5 | H36: meses
B37: ENCARREGADO GERAL | C37: 1 (encarregado) = | G37: 1 | H37: meses
B39: LOCAÇÃO DOS SERVIÇOS DE TERRAPLENAGEM
B41: Área do módulo mínimo | C41: =C7 -> 14000 | D41: m²
B43: REGULARIZACAO DE SUPERFICIES
B45: Área do módulo mínimo | C45: =C41 -> 14000 | D45: m²
B47: REGULARIZAÇÃO E COMPACTAÇÃO DE SUBLEITO DE SOLO PREDOMINANTEMENTE ARGILOSO
B49: 10% da Área do módulo mínimo | C49: =C45*0.1 -> 1400 | D49: m²
B51: REGULARIZAÇÃO E COMPACTAÇÃO DE SUBLEITO DE SOLO PREDOMINANTEMENTE ARENOSO
B53: 10% da Área do módulo mínimo | C53: =C45*0.1 -> 1400 | D53: m²
B55: EXECUÇÃO E COMPACTAÇÃO DE BASE E OU SUB BASE
B57: 15 cm (espessura) x 20% da área módulo mínimo | C57: =C7*0.2*0.15 -> 420 | D57: m³
B59: ESCAVAÇÃO
B61: 1,11 (fator de homogenização) x volume de sub-base | C61: =1.15*C57 -> 483 | D61: m³
B63: TRANSPORTE
B65: 1,20 (fator de empolamento) x volume escavado x 15km (distância) | C65: =1.2*C61*15 -> 8694 | D65: m³
B67: AQUISIÇÃO DE MATERIAL
B69: 15 cm (espessura) x 20% da área módulo mínimo | C69: =C7*0.2*0.15 -> 420 | D69: m³
B71: IMPRIMAÇÃO
B73: Área do módulo mínimo | C73: =C7 -> 14000 | D73: m²
B75: VARREDURA
B77: Área do módulo mínimo | C77: =C73 -> 14000 | D77: m²
B79: PINTURA DE LIGAÇÃO
B81: Área do módulo mínimo | C81: =C77 -> 14000 | D81: m²
B83: CBUQ
B85: 0,05m x Área do módulo mínimo x 2,425 t/m³(densidade) | C85: =TRUNC(0.05*C81*2.425,2) -> 1697.5 | D85: t
B87: TRANSPORTE DE MASSA ASFÁLTICA, DMT ATÉ 30KM
B89: Massa asfáltica | C89: =C85 -> 1697.5 | D89: t
B90: distância (distribuidora até a obra) | C90: 30 | D90: km
B91: DMT | C91: =TRUNC(C89*C90,2) -> 50925 | D91: txkm
B93: TRANSPORTE DE MASSA ASFÁLTICA, DMT EXCEDENTE A 30KM
B95: Massa asfáltica | C95: =C85 -> 1697.5 | D95: t
B96: distância (distribuidora até a obra) | C96: =100-30 -> 70 | D96: km
B97: DMT | C97: =TRUNC(C95*C96,2) -> 118825 | D97: txkm
B99: AQUISIÇÃO DE EMULSÃO PARA IMPRIMAÇÃO
B101: 0,0013T (consumo) x área (imprimação) | C101: =TRUNC(0.0013*C7,2) -> 18.2 | D101: t
B103: AQUISIÇÃO DE EMULSÃO ASFLATÍCA RR-1C
B105: 0,00045T (consumo) x ÁREA | C105: =TRUNC(0.00045*C7,2) -> 6.3 | D105: t
B107: AQUISIÇÃO DE CIMENTO ASFALTÍCO
B109: 0,0566T (consumo) x CBUQ | C109: =TRUNC(0.0566*C85,2) -> 96.07 | D109: t
B111: TRANSPORTE DE MATERIAL ASFÁLTICO, DMT ATÉ 30KM
B113: emulsão p/ imprimação x área (imprimação) | C113: =C101 -> 18.2 | D113: t
B114: emulsão asfáltica x área | C114: =C105 -> 6.3 | D114: t
B115: cap 50/70 | C115: =C109 -> 96.07
B116: distância (distribuidora até a obra) | C116: 30 | D116: km
B117: DMT | C117: =TRUNC((C113+C114+C115)*C116,2) -> 3617.1 | D117: txkm
B119: TRANSPORTE DE MATERIAL ASFÁLTICO, DMT EXCEDENTE A 30KM
B121: emulsão p/ imprimação x área (imprimação) | C121: =C101 -> 18.2 | D121: t
B122: emulsão asfáltica x área | C122: =C105 -> 6.3 | D122: t
B123: cap 50/70 | C123: =C109 -> 96.07
B124: distância (distribuidora até a obra) | C124: =400-30 -> 370 | D124: km
B125: DMT | C125: =TRUNC((C121+C122+C123)*C124,2) -> 44610.9 | D125: txkm
B127: FORNECIMENTO DE PLACA
B129: Sinalização | C129: =C6/500 -> 4 | D129: und
B131: FORNECIMENTO DE SUPORTE PARA PLACA
B133: Sinalização | C133: =C129 -> 4 | D133: und
B135: ESCAVAÇÃO MANUAL DE VALA
B137: 10 (comprimento) x 1 (profundidade) x 0,8 (largura) = | C137: =10*1*0.8 -> 8 | D137: m³
B139: TUBO DE CONCRETO
B141: 10 (comprimento) | C141: 10 | D141: m
B143: REATERRO MANUAL
B145: volume escavação - volume do tubo | C145: =ROUND(C137-10*3.15*0.3^2,2) -> 5.17 | D145: m³
B147: BOCA PARA BUEIRO SIMPLES TUBULAR
B149: 2 unidades p/ bueiro | C149: 2 | D149: und
B151: SARJETA
B153: 10% do trecho (proteção em cortes) | C153: =0.1*C6 -> 200 | D153: und
B155: LEVANTAMENTO PLANIALTIMÉTRICO
B157: comprimento total = | C157: =C6 -> 2000 | D157: m
B159: PROJETO DE PAVIMENTAÇÃO
B161: Área do módulo mínimo | C161: =C6/1000 -> 2 | D161: km
B163: ENSAIOS DE PAVIMENTAÇÃO
B165: Área do módulo mínimo | C165: =C7 -> 14000 | D165: m²

Sheet Cronograma Físico-financeiro
A1: SERVIÇO: Execução de CBUQ em vias públicas - SRP | F1: DATA BASE: | H1: SERVIÇO: Execução de CBUQ em vias públicas - SRP | N1: DATA BASE: | P1: SERVIÇO: Execução de CBUQ em vias públicas - SRP | V1: DATA BASE: | W1: =O1 -> 00:00:00 | X1: SERVIÇO: Execução de CBUQ em vias públicas - SRP | AD1: DATA BASE:
A2: ='RESUMO DO ORÇAMENTO'!A2 -> LOCAL: MUNICÍPIOS DIVERSOS, ESTADO DE SERGIPE | F2: BDI: | G2: ='RESUMO DO ORÇAMENTO'!H2 -> 0 | H2: LOCAL: MUNICÍPIOS DIVERSOS, ESTADO DE SERGIPE | N2: BDI: | O2: =G2 -> 0 | P2: LOCAL: MUNICÍPIOS DIVERSOS, ESTADO DE SERGIPE | V2: BDI: | W2: =O2 -> 0 | X2: LOCAL: MUNICÍPIOS DIVERSOS, ESTADO DE SERGIPE | AD2: BDI: | AE2: =W2 -> 0
A4: DOCUMENTO: CRONOGRAMA | H4: DOCUMENTO: CRONOGRAMA | P4: DOCUMENTO: CRONOGRAMA | X4: DOCUMENTO: CRONOGRAMA
A6: ITEM | B6: DESCRIÇÃO | C6: UNIDADE | D6: QUANTIDADE | E6: PREÇO TOTAL | F6: 1.º PERÍODO | H6: 2.º PERÍODO | J6: 3.º PERÍODO | L6: 4.º PERÍODO | N6: 5.º PERÍODO | P6: 6.º PERÍODO | R6: 7.º PERÍODO | T6: 8.º PERÍODO | V6: 9.º PERÍODO | X6: 10.º PERÍODO | Z6: 11.º PERÍODO | AB6: 12.º PERÍODO | AD6: TOTAL
F7: PERCENTUAL | G7: FINANCEIRO | H7: PERCENTUAL | I7: FINANCEIRO | J7: PERCENTUAL | K7: FINANCEIRO | L7: PERCENTUAL | M7: FINANCEIRO | N7: PERCENTUAL | O7: FINANCEIRO | P7: PERCENTUAL | Q7: FINANCEIRO | R7: PERCENTUAL | S7: FINANCEIRO | T7: PERCENTUAL | U7: FINANCEIRO | V7: PERCENTUAL | W7: FINANCEIRO | X7: PERCENTUAL | Y7: FINANCEIRO | Z7: PERCENTUAL | AA7: FINANCEIRO | AB7: PERCENTUAL | AC7: FINANCEIRO | AD7: PERCENTUAL | AE7: FINANCEIRO
A9: 1 | B9: ='RESUMO DO ORÇAMENTO'!B10 -> PAVIMENTAÇÃO ASFÁLTICA (CBUQ) DE VIAS PÚBLICAS EM MUNICÍPIOS DIVERSOS DO ESTADO DE SERGIPE | C9: % | D9: 1 | E9: ='RESUMO DO ORÇAMENTO'!H10 -> 0 | F9: 0.02 | G9: =F9*$E9 -> 0 | H9: 0.03 | I9: =H9*$E9 -> 0 | J9: 0.05 | K9: =J9*$E9 -> 0 | L9: 0.1 | M9: 10 | N9: 0.1 | O9: =N9*$E9 -> 0 | P9: 0.1 | Q9: =P9*$E9 -> 0 | R9: 0.1 | S9: =R9*$E9 -> 0 | T9: 0.1 | U9: =T9*$E9 -> 0 | V9: 0.1 | W9: =V9*$E9 -> 0 | X9: 0.1 | Y9: =X9*$E9 -> 0 | Z9: 0.1 | AA9: =Z9*$E9 -> 0 | AB9: 0.1 | AC9: =AB9*$E9 -> 0 | AD9: =F9+H9+J9+L9+N9+P9+R9+T9+V9+X9+Z9+AB9 -> 1 | AE9: =AD9*$E9 -> 0
D12: TOTAL | E12: =SUM(E8:E11) -> 0 | F12: =G12/$E$12 ->  | G12: =SUM(G8:G11) -> 0 | H12: =I12/$E$12 ->  | I12: =SUM(I8:I11) -> 0 | J12: =K12/$E$12 ->  | K12: =SUM(K8:K11) -> 0 | L12: =M12/$E$12 ->  | M12: =SUM(M8:M11) -> 10 | N12: =O12/$E$12 ->  | O12: =SUM(O8:O11) -> 0 | P12: =Q12/$E$12 ->  | Q12: =SUM(Q8:Q11) -> 0 | R12: =S12/$E$12 ->  | S12: =SUM(S8:S11) -> 0 | T12: =U12/$E$12 ->  | U12: =SUM(U8:U11) -> 0 | V12: =W12/$E$12 ->  | W12: =SUM(W8:W11) -> 0 | X12: =Y12/$E$12 ->  | Y12: =SUM(Y8:Y11) -> 0 | Z12: =AA12/$E$12 ->  | AA12: =SUM(AA8:AA11) -> 0 | AB12: =AC12/$E$12 ->  | AC12: =SUM(AC8:AC11) -> 0 | AD12: =AE12/$E$12 ->  | AE12: =SUM(AE8:AE11) -> 0

Sheet BDI
A1: SERVIÇO: Execução de CBUQ em vias públicas - SRP
A4: DOCUMENTO: DETALHAMENTO DA BONIFICAÇÃO E DESPESAS INDIRETAS
A6: FÓRMULA APLICADA
A8: BDI = { [ ( 1 + AC / 100 + R / 100 + SG/100 ) . ( 1 + DF / 100 ) . ( 1 + L / 100 ) / ( 1 - I / 100 ) ] - 1 } . 100
A10: ONDE:
A11: BDI = | B11: Bonificação e Despesas Indiretas
A12: AC = | B12: Administração Central
A13: SG= | B13: Seguros e garantias
A14: DF = | B14: Despesas Financeiras
A15: R = | B15: Riscos
A16: L = | B16: Lucro
A17: I = | B17: Impostos
A20: EXECUÇÃO DE SERVIÇOS
A22: ITEM | B22: DESCRIÇÃO | C22: PERCENTUAIS (%)
A23: 1 | B23: Administração Central
A24: 2 | B24: Seguros e garantias
A25: 3 | B25: Riscos
A26: 4 | B26: Despesas Financeiras
A27: 5 | B27: Lucro
A28: 6 | B28: Impostos | C28: =SUM(C29:C32) -> 0
A29: 6.1 | B29: PIS
A30: 6.2 | B30: COFINS
A31: 6.3 | B31: ISS
A32: 6.4 | B32: IPRB
A33: BDI | C33: =ROUND((((1+C23/100+C24/100+C25/100)*(1+C26/100)*(1+C27/100))/(1-C28/100))-1,4) -> 0

Sheet BDI FORN.
A1: SERVIÇO: Execução de CBUQ em vias públicas - SRP
A4: DOCUMENTO: DETALHAMENTO DA BONIFICAÇÃO E DESPESAS INDIRETAS
A6: FÓRMULA APLICADA
A8: BDI = { [ ( 1 + AC / 100 + R / 100 + SG/100 ) . ( 1 + DF / 100 ) . ( 1 + L / 100 ) / ( 1 - I / 100 ) ] - 1 } . 100
A10: ONDE:
A11: BDI = | B11: Bonificação e Despesas Indiretas
A12: AC = | B12: Administração Central
A13: SG= | B13: Seguros e garantias
A14: DF = | B14: Despesas Financeiras
A15: R = | B15: Riscos
A16: L = | B16: Lucro
A17: I = | B17: Impostos
A20: EXECUÇÃO DE SERVIÇOS
A22: ITEM | B22: DESCRIÇÃO | C22: PERCENTUAIS (%)
A23: 1 | B23: Administração Central
A24: 2 | B24: Seguros e garantias
A25: 3 | B25: Riscos
A26: 4 | B26: Despesas Financeiras
A27: 5 | B27: Lucro
A28: 6 | B28: Impostos | C28: =SUM(C29:C32) -> 0
A29: 6.1 | B29: PIS
A30: 6.2 | B30: COFINS
A31: 6.3 | B31: ISS
A32: 6.4 | B32: IPRB
A33: BDI | C33: =ROUND((((1+C23/100+C24/100+C25/100)*(1+C26/100)*(1+C27/100))/(1-C28/100))-1,4) -> 0

Sheet ENCARGOS SOCIAIS
A1: SERVIÇO: Execução de CBUQ em vias públicas - SRP | E1: DATA BASE:
A2: LOCAL: MUNICÍPIOS DIVERSOS, ESTADO DE SERGIPE | E2: BDI:
E3: BDI FORNECIMENTO:
F4: Não Desonerado; Horista: ; Mensalista:
A6: ENCARGOS SOCIAIS SOBRE A MÃO DE OBRA
A7: CÓDIGO | B7: DESCRIÇÃO | C7: COM DESONERAÇÃO | E7: SEM DESONERAÇÃO
C8: HORISTA % | D8: MENSALISTA % | E8: HORISTA % | F8: MENSALISTA %
A10: GRUPO A
A11: A1 | B11: INSS
A12: A2 | B12: SESI
A13: A3 | B13: SENAI
A14: A4 | B14: INCRA
A15: A5 | B15: SEBRAE
A16: A6 | B16: Salário Educação
A17: A7 | B17: Seguro Contra Acidentes de Trabalho
A18: A8 | B18: FGTS
A19: A9 | B19: SECONCI
A20: A | B20: Total | C20: =SUM(C11:C19) -> 0 | D20: =SUM(D11:D19) -> 0 | E20: =SUM(E11:E19) -> 0 | F20: =SUM(F11:F19) -> 0
A22: GRUPO B
A23: B1 | B23: Repouso Semanal Remunerado
A24: B2 | B24: Feriados
A25: B3 | B25: Auxílio-enfermidade
A26: B4 | B26: 13° salário
A27: B5 | B27: Licença-paternidade
A28: B6 | B28: Faltas Justificadas
A29: B7 | B29: Dias de chuva
A30: B8 | B30: Auxílio Acidente de Trabalho
A31: B9 | B31: Férias Gozadas
A32: B10 | B32: Salário Maternidade
A33: B | B33: Total | C33: =SUM(C23:C32) -> 0 | D33: =SUM(D23:D32) -> 0 | E33: =SUM(E23:E32) -> 0 | F33: =SUM(F23:F32) -> 0
A35: GRUPO C
A36: C1 | B36: Aviso Prévio Indenizado
A37: C2 | B37: Aviso Prévio Trabalhado
A38: C3 | B38: Férias Indenizadas
A39: C4 | B39: Depósito Rescisão Sem Justa Causa
A40: C5 | B40: Indenização Adicional
A41: C | B41: Total | C41: =SUM(C36:C40) -> 0 | D41: =SUM(D36:D40) -> 0 | E41: =SUM(E36:E40) -> 0 | F41: =SUM(F36:F40) -> 0
A43: GRUPO D
A44: D1 | B44: Reincidência de A sobre B
A45: D2 | B45: Reincidência de Grupo A sobre Aviso Prévio Trabalhado e Reincidência do FGTS sobre Aviso Prévio Indenizado
A46: D | B46: Total | C46: =SUM(C44:C45) -> 0 | D46: =SUM(D44:D45) -> 0 | E46: =SUM(E44:E45) -> 0 | F46: =SUM(F44:F45) -> 0
A48: T O T A L (%) | C48: =C20+C33+C41+C46 -> 0 | D48: =D20+D33+D41+D46 -> 0 | E48: =E20+E33+E41+E46 -> 0 | F48: =F20+F33+F41+F46 -> 0
